bitfinex/quotes_ETHUSD_20241123
["timestamp","ask_amount","ask_price","bid_price","bid_amount"]
[1732379123647,0.19577782,3395.3,3390.8,0.21345365]
[1732379123957,0.15556,3396.6,3390.1,0.00422218]
[1732379123958,0.1,3394.6,3390.1,0.00422218]
[1732379124247,0.03683709,3394.5,3390.0,0.3501]
[1732379124485,0.1,3394.4,3390.0,0.35432218]
[1732379124624,0.0368433,3394.3,3390.0,0.35432218]
[1732379124960,0.1,3394.5,3390.0,0.3501]
[1732379125162,0.1,3394.0,3390.0,0.3501]
[1732379125312,1.49244543,3393.9,3390.0,0.3501]
[1732379125647,1.60484454,3393.9,3390.0,0.3501]
[1732379126244,1.60484454,3393.9,3389.8,0.30636929]
[1732379126245,0.03683657,3393.8,3390.6,0.3501]
[1732379126446,0.13261559,3394.5,3391.6,3.0]
[1732379126605,0.15703715,3394.6,3391.7,0.32947127]
[1732379126811,0.15703715,3394.6,3391.8,1.5171]
[1732379127108,0.15703715,3394.6,3391.9,0.02946841]
[1732379127311,0.15703715,3394.6,3392.0,0.15465684]
[1732379127611,0.15703715,3394.6,3392.1,0.02947177]
[1732379128458,0.15703715,3394.6,3392.0,0.18412857]
[1732379128753,0.15703715,3394.6,3392.1,0.55]
[1732379128981,0.15556,3396.6,3390.1,1.5051]
[1732379128982,0.03455583,3394.5,3390.1,1.5051]
[1732379129264,0.2853646,3394.8,3390.2,0.17999547]
[1732379129495,0.03455583,3394.7,3390.2,0.17999547]
[1732379129635,1.5175,3394.1,3390.2,0.15051]
[1732379129847,1.5175,3393.9,3390.2,0.15051]
[1732379130026,1.5175,3393.7,3390.2,0.15051]
[1732379130226,1.5175,3393.5,3388.4,0.14895884]
[1732379130422,1.55205561,3393.4,3389.3,1.5051]
[1732379130628,1.5175,3393.2,3389.3,1.5051]
[1732379130822,0.16520556,3393.3,3388.6,1.5051]
[1732379130823,0.1,3392.9,3388.6,1.5051]
[1732379131168,0.1,3392.9,3386.7,0.31969778]
[1732379131169,0.1,3392.5,3386.8,1.5051]
[1732379131337,0.1,3392.5,3386.9,0.21198287]
[1732379131338,0.30623344,3392.4,3386.9,0.21198287]
[1732379131539,0.2,3392.1,3386.9,0.21198287]
[1732379131740,0.30623344,3392.0,3386.9,0.21198287]
[1732379131975,0.30623344,3392.0,3387.0,0.17170829]
[1732379131976,0.1,3391.8,3387.0,0.17170829]
[1732379132264,0.1,3391.6,3387.1,0.02951485]
[1732379132469,0.1,3390.7,3387.0,0.17170829]
[1732379132674,0.1,3390.7,3386.3,0.229971]
[1732379132675,0.1,3390.5,3386.3,0.229971]
[1732379132822,3.1,3390.3,3386.3,0.229971]
[1732379133029,1.25049218,3390.2,3386.3,0.229971]
[1732379133262,0.02086884,3390.2,3386.4,1.53462647]
[1732379133472,0.2853646,3391.0,3386.4,1.53462647]
[1732379133776,0.02086884,3390.9,3386.6,1.5051]
[1732379133955,0.02086884,3390.9,3386.5,0.46665975]
[1732379133956,0.02086884,3391.6,3386.7,1.53460932]
[1732379134175,0.02086884,3391.6,3387.8,0.1]
[1732379134376,0.02086884,3392.2,3388.1,2.9412203]
[1732379134672,0.1,3395.2,3389.7,0.55]
[1732379134840,0.86934442,3396.0,3390.6,1.5051]
[1732379135066,8.99,3396.6,3390.9,3.0]
[1732379135378,8.99,3396.6,3390.7,0.47999159]
[1732379135379,0.1,3395.5,3391.0,1.93757288]
[1732379135524,0.1,3395.2,3391.0,1.5051]
[1732379135727,0.35438657,3395.1,3391.1,0.22324253]
[1732379135965,0.92443866,3395.0,3391.2,0.17283425]
[1732379136267,0.35438657,3394.9,3391.0,1.5051]
[1732379136482,0.2,3394.0,3389.5,1.5051]
[1732379136648,0.2,3394.0,3384.6,1.44289954]
[1732379136649,0.1,3393.6,3386.5,0.02949729]
[1732379136841,0.1,3393.4,3388.6,1.5051]
[1732379137160,0.2853646,3393.3,3388.7,0.02950789]
[1732379137464,0.1,3392.7,3387.9,1.5051]
[1732379137637,1.5175,3392.5,3388.0,0.02950722]
[1732379137840,4.99315106,3392.4,3388.0,0.02950722]
[1732379138041,1.5175,3392.4,3388.0,0.02950362]
[1732379138289,1.5175,3392.4,3389.8,1.6053702]
[1732379138439,1.5294,3394.8,3389.9,0.029489]
[1732379138641,1.5294,3394.8,3390.1,1.5927]
[1732379138857,0.02947638,3394.7,3390.2,1.57217638]
[1732379139205,0.02947638,3394.7,3389.8,0.1002702]
[1732379139206,0.02947638,3394.7,3390.3,0.57948467]
[1732379139347,0.15588764,3394.6,3390.3,0.57948467]
[1732379139544,0.02947638,3394.5,3390.3,0.02948467]
[1732379139799,0.02947638,3394.5,3390.1,0.02948346]
[1732379140129,0.02947638,3394.5,3391.0,3.0]
[1732379140391,0.18536402,3394.6,3391.5,3.0]
[1732379140605,0.02947638,3395.6,3391.7,0.55]
[1732379140906,0.15588764,3395.5,3391.8,0.02946336]
[1732379141049,0.02947638,3395.4,3392.1,0.55]
[1732379141262,0.02947638,3395.4,3392.2,0.02946229]
[1732379141443,0.02947638,3395.4,3392.3,0.35794623]
[1732379141643,0.02947638,3395.4,3392.2,0.02946229]
[1732379141644,0.02947638,3395.4,3391.1,0.55]
[1732379141970,0.02947638,3395.4,3389.7,0.1]
[1732379141971,0.02947638,3395.4,3391.4,0.55]
[1732379142175,0.02947638,3395.4,3391.5,0.24374085]
[1732379142343,0.02947638,3395.4,3391.7,1.5927]
[1732379142684,0.02947638,3395.4,3391.8,0.0294677]
[1732379144164,0.02947638,3395.4,3391.9,0.02946767]
[1732379144365,1.5294,3395.3,3391.7,1.62217425]
[1732379144567,0.02947638,3395.2,3391.8,0.02947606]
[1732379144811,0.15588764,3395.1,3391.9,0.16221761]
[1732379144979,0.02947638,3395.0,3392.0,0.02946972]
[1732379145682,0.02947638,3395.0,3392.0,0.57946972]
[1732379146087,0.02947638,3395.0,3392.1,1.5927]
[1732379146284,0.02947638,3395.2,3392.3,0.55]
[1732379146493,0.02947638,3395.2,3392.4,0.02946261]
[1732379146820,2.3492407,3394.9,3392.4,0.02946261]
[1732379146995,1.5294,3395.3,3392.4,0.02946261]
[1732379146996,2.37871708,3394.8,3392.4,0.02946261]
[1732379147335,0.02947638,3394.8,3392.5,1.6166]
[1732379147472,2.3492407,3395.0,3392.6,0.029463]
[1732379147815,0.02947638,3394.9,3392.7,0.1646063]
[1732379147985,2.3492407,3395.4,3392.8,1.6460621]
[1732379148185,3.52378155,3396.0,3392.8,1.6460621]
[1732379148186,2.3492407,3396.0,3393.3,0.55]
[1732379148369,2.3492407,3396.8,3394.3,3.0]
[1732379148571,2.3492407,3396.8,3393.3,0.89533052]
[1732379148572,0.02947638,3396.8,3394.4,1.94604479]
[1732379148770,4.47058463,3397.4,3394.4,1.94604479]
[1732379148771,0.02947638,3397.2,3394.4,1.64604479]
[1732379149017,0.02947638,3397.2,3394.5,1.78120448]
[1732379149215,0.02947638,3397.2,3394.7,1.6166]
[1732379149430,0.02947638,3397.2,3394.8,0.02944479]
[1732379149573,0.02947638,3397.8,3394.8,0.02944479]
[1732379149778,0.23787171,3397.7,3394.9,0.16460448]
[1732379150009,0.02947638,3397.6,3395.0,0.02944478]
[1732379150188,0.02947638,3398.0,3395.0,0.02944478]
[1732379150399,0.71145891,3398.0,3395.0,0.02944478]
[1732379150602,0.02947638,3398.0,3395.1,1.6166]
[1732379150827,0.02947638,3398.2,3395.4,1.6166]
[1732379151119,0.02947638,3398.6,3395.7,1.6166]
[1732379151319,0.02947638,3398.8,3395.9,1.6166]
[1732379151473,0.38028031,3399.6,3396.6,0.55]
[1732379151669,0.02947638,3399.6,3396.8,1.6166]
[1732379151936,2.9233661,3400.5,3396.6,0.55]
[1732379151937,0.02947638,3400.3,3397.0,1.6166]
[1732379152210,0.02947638,3400.3,3397.3,1.6166]
[1732379152415,0.02947638,3400.3,3397.4,0.02942147]
[1732379152616,0.18583402,3400.3,3397.4,0.02942146]
[1732379152910,0.18583402,3400.3,3397.3,1.6166]
[1732379153119,1.5341,3400.2,3397.3,1.6166]
[1732379153326,1.5341,3400.2,3396.0,0.16460361]
[1732379153327,1.56357638,3400.1,3396.6,1.6166]
[1732379153472,1.73556978,3400.1,3396.7,0.02942883]
[1732379153916,1.73556978,3400.1,3396.6,1.6166]
[1732379153917,0.02947638,3400.0,3396.6,1.6166]
[1732379154126,0.02947638,3399.9,3396.7,0.02943459]
[1732379155086,0.02947638,3399.9,3396.6,1.6166]
[1732379155349,0.02947638,3399.9,3396.8,0.02942833]
[1732379155542,0.20318972,3399.9,3396.8,0.19403116]
[1732379155751,0.20318972,3399.9,3396.9,1.6166]
[1732379156031,0.02947638,3399.9,3397.1,1.6166]
[1732379156280,0.02947638,3400.7,3397.3,1.6166]
[1732379156432,0.02947638,3400.7,3397.7,3.0]
[1732379156433,0.28288638,3400.7,3397.7,3.0]
[1732379156635,0.28288638,3400.7,3396.9,0.55]
[1732379156636,0.18169864,3400.6,3397.9,1.6166]
[1732379156987,0.18169864,3400.6,3398.1,1.6166]
[1732379156988,0.02947638,3400.5,3398.1,1.6166]
[1732379157272,0.18169864,3400.6,3398.3,1.6166]
[1732379157273,0.02947638,3400.6,3398.3,1.6166]
[1732379157483,0.02947638,3400.9,3398.4,1.81061155]
[1732379157634,0.02947638,3400.9,3398.4,1.64601005]
[1732379158030,0.140625,3401.0,3398.4,1.64601005]
[1732379158280,0.140625,3401.0,3398.6,4.6166]
[1732379158439,0.140625,3401.0,3398.7,0.02941011]
[1732379159680,0.140625,3401.0,3398.6,1.6166]
[1732379160049,1.5341,3400.9,3398.6,1.6166]
[1732379160374,0.1674725,3400.8,3398.6,1.6166]
[1732379161187,0.1674725,3400.8,3398.7,0.02941808]
[1732379161555,0.140625,3401.0,3398.7,0.02941808]
[1732379162458,0.140625,3401.0,3396.7,0.1]
[1732379162459,0.140625,3401.0,3398.8,1.6166]
[1732379162792,0.140625,3401.0,3399.0,1.6166]
[1732379162951,0.140625,3401.0,3399.2,1.6166]
[1732379163154,0.140625,3401.0,3399.4,1.6166]
[1732379163349,0.140625,3401.0,3399.1,0.55]
[1732379163350,0.140625,3401.0,3399.5,1.81060051]
[1732379163546,0.140625,3401.0,3399.6,0.55]
[1732379163750,0.140625,3401.0,3399.8,1.6166]
[1732379163979,0.140625,3401.0,3400.0,1.6166]
[1732379164177,0.140625,3401.0,3400.1,0.19399508]
[1732379164473,0.140625,3401.0,3398.4,0.3]
[1732379164474,1.5341,3400.8,3396.1,0.02939357]
[1732379164660,8.91939554,3400.7,3396.0,1.6166]
[1732379164893,10.42212658,3400.7,3396.1,1.64602917]
[1732379165108,4.19562266,3400.6,3396.3,1.6166]
[1732379165411,0.02939554,3400.5,3396.4,1.64602291]
[1732379165555,1.38613338,3400.4,3396.6,1.6166]
[1732379165749,0.02939554,3400.3,3396.8,1.6166]
[1732379165985,0.02939554,3400.3,3397.0,1.6166]
[1732379166290,0.02939554,3400.3,3397.2,1.6166]
[1732379166493,0.02939554,3400.7,3397.4,1.6166]
[1732379166666,0.02939554,3400.7,3397.6,1.6166]
[1732379166851,0.02939554,3401.3,3397.8,1.6166]
[1732379167198,0.02939554,3401.9,3398.4,1.6166]
[1732379167364,0.02939554,3401.9,3398.5,2.10766413]
[1732379167554,0.02939554,3401.9,3398.5,1.64600413]
[1732379168594,0.02939554,3401.9,3398.7,1.6166]
[1732379168748,0.02939554,3401.9,3398.9,1.5638]
[1732379169103,0.02939554,3401.9,3399.1,1.5638]
[1732379169269,0.02939554,3402.6,3399.3,1.5638]
[1732379169462,0.02939554,3402.6,3399.2,0.02940221]
[1732379169463,0.02939554,3402.6,3399.5,1.5638]
[1732379169663,0.02939554,3402.6,3399.6,0.02939765]
[1732379170264,0.02939554,3402.6,3399.7,1.5638]
[1732379170460,0.02939554,3402.6,3399.9,1.5638]
[1732379170674,0.02939554,3402.6,3400.1,1.5638]
[1732379170998,0.02939554,3402.6,3400.2,0.02939601]
[1732379171547,1.6380081,3403.9,3400.3,1.5638]
[1732379171786,0.40715595,3403.6,3400.4,0.18871227]
[1732379171991,0.02939554,3403.5,3400.4,0.18871227]
[1732379172148,1.5295,3403.6,3400.3,1.5638]
[1732379172348,1.5295,3403.3,3400.3,1.5638]
[1732379172591,1.5295,3403.1,3400.3,1.5638]
[1732379172891,0.02939554,3403.0,3400.3,1.5638]
[1732379173197,1.5295,3402.9,3397.7,0.2932]
[1732379173354,1.5295,3402.7,3397.8,1.59320559]
[1732379173686,1.5295,3402.5,3398.0,1.5638]
[1732379173897,1.55889554,3402.4,3398.1,0.02941068]
[1732379174122,1.55889554,3402.4,3398.1,0.20172274]
[1732379174326,1.55889554,3402.4,3398.2,0.2932]
[1732379174499,1.55889554,3402.4,3398.1,0.20172274]
[1732379174500,1.55889554,3402.4,3398.4,1.857]
[1732379174697,0.15588955,3402.3,3398.5,0.21804942]
[1732379175057,1.5295,3402.1,3398.5,0.21804942]
[1732379175323,0.15588955,3402.3,3398.5,0.21804942]
[1732379175324,1.55889554,3402.0,3398.5,0.21804942]
[1732379175526,0.15588955,3401.9,3398.6,0.20750494]
[1732379175724,0.02939554,3401.8,3398.7,0.02941151]
[1732379176286,0.02832554,3401.8,3398.7,0.02941151]
[1732379176491,1.5295,3402.0,3399.0,1.5638]
[1732379176715,0.02832554,3401.9,3399.1,0.02940304]
[1732379176992,1.5295,3403.6,3399.5,0.55]
[1732379177328,1.5295,3403.6,3399.4,3.0]
[1732379177329,0.02832554,3403.5,3400.0,0.55]
[1732379177530,0.02832554,3403.5,3400.1,0.02939357]
[1732379177826,0.15578255,3403.4,3400.3,1.5638]
[1732379178030,0.15578255,3403.4,3400.6,0.55]
[1732379178237,0.15578255,3403.4,3400.8,0.55]
[1732379178529,0.15578255,3403.4,3401.0,0.2932]
[1732379178687,0.15578255,3403.4,3401.2,0.2932]
[1732379179009,0.02832554,3403.5,3401.3,0.0293851]
[1732379179218,0.1085081,3403.9,3401.4,1.857]
[1732379179389,0.1085081,3403.9,3401.1,0.24363851]
[1732379179390,0.1085081,3403.9,3401.8,0.2932]
[1732379179728,0.1085081,3403.9,3401.9,0.0293777]
[1732379180138,0.02832554,3403.8,3402.0,0.02937714]
[1732379180286,0.02832554,3403.8,3401.5,0.02938969]
[1732379180636,1.652499,3403.7,3400.9,0.02939122]
[1732379180804,0.02832554,3403.6,3401.0,0.0293961]
[1732379181002,0.16808245,3403.5,3401.0,0.19930471]
[1732379181200,0.19640799,3403.5,3401.0,0.19930471]
[1732379181642,1.5351,3403.7,3401.0,0.19930471]
[1732379181643,0.73150799,3403.7,3401.0,0.19930471]
[1732379182230,0.1085081,3403.9,3401.2,0.55]
[1732379182535,0.1085081,3403.9,3401.4,2.0679]
[1732379182711,0.1085081,3403.9,3401.8,1.5179]
[1732379183036,0.1085081,3403.9,3401.9,3.02937711]
[1732379183327,0.1085081,3403.9,3402.1,0.2932]
[1732379183501,0.1085081,3403.9,3402.2,0.02937584]
[1732379183699,0.1085081,3403.9,3402.3,0.18404758]
[1732379183898,0.1085081,3403.9,3402.5,1.5179]
[1732379184135,0.1085081,3403.9,3402.6,0.02937386]
[1732379184356,0.1085081,3403.9,3402.7,4.5179]
[1732379186192,0.15351,3406.4,3404.0,0.02936103]
[1732379186387,1.5351,3406.5,3404.0,0.02936103]
[1732379186822,1.5351,3406.5,3404.2,3.0]
[1732379187126,1.5249,3408.5,3404.4,1.6063]
[1732379187453,1.5249,3408.5,3404.5,0.18998693]
[1732379187725,1.5249,3408.5,3404.6,1.6063]
[1732379187888,1.5249,3408.5,3404.7,0.02935633]
[1732379188741,1.5249,3408.5,3404.8,0.0293597]
[1732379189740,1.5249,3408.5,3404.9,0.02935682]
[1732379190042,1.5249,3408.5,3404.6,1.6063]
[1732379190043,1.5249,3408.3,3404.6,1.6063]
[1732379190546,1.5249,3408.3,3404.7,0.02936409]
[1732379190731,1.5249,3408.1,3404.8,0.16356641]
[1732379190934,4.5249,3408.1,3404.9,0.02936043]
[1732379191102,0.58837268,3408.0,3404.9,0.02936043]
[1732379191448,1.5249,3408.1,3405.0,1.6063]
[1732379191647,1.5249,3408.1,3405.1,0.02935274]
[1732379192346,1.5249,3408.1,3405.2,1.6063]
[1732379192519,0.2087783,3408.6,3405.4,1.6063]
[1732379192719,0.2087783,3408.6,3404.3,0.1]
[1732379192720,0.2087783,3408.6,3405.6,1.6063]
[1732379192925,0.2087783,3408.6,3406.0,1.6063]
[1732379193254,1.5249,3409.0,3405.2,1.171902]
[1732379193255,1.2990413,3409.0,3406.2,1.6063]
[1732379193463,1.2990413,3409.0,3406.3,0.02934595]
[1732379193751,0.065363,3409.0,3406.4,1.6063]
[1732379193910,0.065363,3409.0,3406.5,0.19290565]
[1732379194363,0.065363,3409.0,3406.6,0.02934479]
[1732379194645,0.015363,3409.0,3406.6,0.02934479]
[1732379195007,1.9021,3407.4,3406.7,1.6063]
[1732379195274,1.67690306,3407.4,3406.8,0.19290764]
[1732379195751,1.67690306,3407.4,3406.9,1.6063]
[1732379196049,1.67690306,3407.4,3407.1,1.6063]
[1732379196050,0.01030306,3407.4,3407.1,1.6063]
[1732379196349,0.01030306,3407.4,3407.2,0.02933289]
[1732379196862,0.015363,3408.9,3407.3,1.06076329]
[1732379197146,0.015363,3408.9,3407.4,0.02933381]
[1732379198355,0.015363,3408.9,3407.6,1.5719]
[1732379198647,0.015363,3408.9,3407.7,0.18652245]
[1732379199030,0.015363,3408.9,3407.7,0.02933245]
[1732379202676,0.015363,3408.9,3407.8,1.5719]
[1732379202965,0.015363,3408.9,3408.0,1.5719]
[1732379203175,0.015363,3408.9,3408.1,0.02932396]
[1732379203461,0.015363,3408.9,3408.2,0.1601224]
[1732379203622,0.015363,3408.9,3408.3,0.02932659]
[1732379204047,0.015363,3408.9,3408.3,0.02932753]
[1732379204252,0.015363,3408.9,3403.4,1.79189821]
[1732379204253,0.015363,3408.9,3405.9,1.5719]
[1732379204475,0.015363,3408.9,3406.1,1.5719]
[1732379204793,0.015363,3408.9,3406.3,1.5719]
[1732379205088,0.015363,3408.9,3406.5,1.5719]
[1732379205289,0.015363,3408.9,3406.6,0.1894563]
[1732379205983,0.015363,3408.9,3406.7,1.5719]
[1732379206184,0.015363,3408.9,3406.8,0.02933474]
[1732379206655,0.015363,3408.9,3406.7,1.5719]
[1732379206859,0.015363,3408.9,3406.8,0.02933827]
[1732379207820,0.015363,3408.9,3406.9,1.5924]
[1732379207997,0.015363,3408.9,3406.2,0.1]
[1732379207998,0.015363,3408.9,3407.1,1.5924]
[1732379208284,1.5422,3410.1,3407.6,1.8856]
[1732379208444,1.5422,3410.1,3407.7,0.21788582]
[1732379209795,1.5422,3410.1,3407.8,0.55]
[1732379209993,1.5422,3410.1,3407.9,0.0293248]
[1732379210694,0.540854,3410.1,3407.9,0.0293248]
[1732379211590,0.490854,3410.1,3407.9,0.0293248]
[1732379212398,3.1,3412.1,3407.9,0.0293248]
[1732379212714,15.01057443,3412.2,3407.9,0.0293248]
[1732379212715,1.73097646,3412.0,3407.9,0.0293248]
[1732379212924,0.36799623,3412.2,3408.0,1.5924]
[1732379213129,0.81194857,3412.2,3408.3,0.55]
[1732379213290,0.81194857,3412.2,3408.2,1.5924]
[1732379213291,0.81194857,3412.2,3408.5,0.55]
[1732379213494,0.09110892,3412.2,3408.8,0.55]
[1732379213808,0.09110892,3412.2,3409.2,0.55]
[1732379213982,0.09110892,3412.2,3409.3,0.32251819]
[1732379214728,0.09110892,3412.2,3409.5,0.2932]
[1732379214925,0.09110892,3412.2,3409.7,0.2932]
[1732379215092,0.2516535,3413.0,3409.8,0.02931699]
[1732379215431,1.5422,3412.8,3409.8,0.02931699]
[1732379216806,0.5422,3412.8,3410.0,0.2932]
[1732379217139,0.5422,3412.8,3410.1,0.02931194]
[1732379217334,0.5422,3412.8,3410.2,0.2932]
[1732379217486,0.5422,3412.8,3410.3,0.0293107]
[1732379218505,0.5422,3412.8,3410.4,1.8856]
[1732379218694,0.5422,3412.8,3410.5,0.02930866]
[1732379218889,0.5422,3412.8,3410.5,0.32250866]
[1732379219296,0.5422,3412.8,3410.5,0.57930866]
[1732379219492,0.5422,3412.8,3410.6,0.21717087]
[1732379219826,0.5422,3412.8,3410.7,0.02930667]
[1732379220281,0.5422,3412.8,3410.7,0.09632265]
[1732379220792,3.0,3414.4,3410.7,0.09632265]
[1732379220793,1.5422,3413.4,3410.8,1.5924]
[1732379220992,0.02930667,3413.3,3410.9,0.32250381]
[1732379221207,0.02930667,3413.3,3411.2,1.5924]
[1732379221387,0.02930667,3413.3,3410.0,0.505]
[1732379221388,1.52150667,3414.3,3411.5,0.55]
[1732379221588,1.52150667,3414.3,3411.7,1.5924]
[1732379221824,1.52150667,3414.3,3411.8,0.24353564]
[1732379221825,0.15215067,3414.2,3411.8,0.24353564]
[1732379222130,0.15215067,3414.2,3412.1,0.2932]
[1732379222283,0.15215067,3414.2,3412.3,0.2932]
[1732379222485,0.15215067,3414.2,3412.4,0.02929208]
[1732379222927,0.1521107,3415.7,3412.5,1.5924]
[1732379223140,0.1521107,3415.7,3412.9,0.2932]
[1732379223285,0.1521107,3415.7,3411.8,0.21424]
[1732379223286,0.1521107,3415.7,3413.0,1.62168261]
[1732379223482,0.1521107,3415.7,3413.1,0.16216826]
[1732379223698,0.1521107,3415.7,3413.2,0.02928762]
[1732379224309,1.5422,3415.6,3413.2,0.02928762]
[1732379224507,1.5422,3415.6,3413.0,1.5924]
[1732379224727,1.5422,3415.6,3413.1,0.0292861]
[1732379224933,0.16943107,3415.5,3413.2,0.21266861]
[1732379225146,0.16943107,3415.5,3413.3,0.02928642]
[1732379226288,1.5422,3415.6,3413.4,1.5924]
[1732379226488,0.1521107,3415.7,3413.5,0.02928642]
[1732379226988,0.1521107,3415.7,3413.4,1.5924]
[1732379226989,1.5422,3415.6,3413.4,1.5924]
[1732379227223,0.16943107,3415.5,3413.0,0.505]
[1732379227423,0.26943107,3415.5,3413.0,0.505]
[1732379227605,0.16943107,3415.5,3413.0,0.505]
[1732379227807,0.55,3415.4,3413.0,0.505]
[1732379228008,1.617,3414.9,3413.0,0.505]
[1732379228239,0.55,3414.6,3413.0,0.505]
[1732379228444,0.55,3414.2,3413.0,0.505]
[1732379228744,3.0,3414.5,3409.0,0.1]
[1732379228745,1.617,3413.9,3411.5,0.02930528]
[1732379228943,1.617,3413.9,3410.5,0.02930594]
[1732379228944,1.617,3413.7,3410.5,0.02930594]
[1732379229141,1.617,3413.7,3410.6,0.15688059]
[1732379229142,1.617,3413.5,3410.6,0.15688059]
[1732379229306,0.55,3413.4,3410.7,0.02931257]
[1732379229510,1.14037418,3413.3,3410.7,0.02931257]
[1732379229712,0.55,3413.2,3410.6,0.18619223]
[1732379229927,1.617,3412.9,3408.7,1.5395]
[1732379230236,0.55,3412.4,3408.8,0.02931754]
[1732379230392,1.617,3412.3,3408.8,0.18326754]
[1732379230598,0.55,3412.2,3408.9,0.17227675]
[1732379230842,8.89,3412.2,3409.1,1.5395]
[1732379231146,1.617,3412.3,3409.3,1.5395]
[1732379231307,1.617,3412.3,3409.4,0.02931613]
[1732379231494,0.3714059,3412.2,3409.5,0.02931603]
[1732379231696,0.3714059,3412.2,3409.3,1.5395]
[1732379231697,0.55,3412.0,3409.4,0.02932171]
[1732379231895,0.55,3412.0,3409.3,1.5395]
[1732379231896,3.3714059,3411.9,3409.3,1.69345]
[1732379232096,4.617,3411.7,3408.5,0.02932459]
[1732379232337,0.3714059,3411.6,3408.6,1.5395]
[1732379232538,0.64662261,3411.5,3408.7,0.20792601]
[1732379232843,1.617,3411.2,3408.7,0.17859969]
[1732379233042,3.0,3411.1,3408.7,0.17859969]
[1732379233209,10.507,3411.2,3408.8,0.02933189]
[1732379233408,10.507,3411.2,3408.8,0.20407505]
[1732379233735,10.507,3411.2,3408.9,0.02932288]
[1732379234117,0.35434985,3411.5,3408.9,0.02932288]
[1732379234118,0.35434985,3411.5,3409.0,1.5395]
[1732379234298,0.35434985,3411.7,3409.1,0.02931926]
[1732379234530,0.51604985,3411.7,3409.1,0.18326926]
[1732379234760,0.55,3411.6,3409.0,1.5395]
[1732379235038,4.97134985,3411.5,3409.0,1.5395]
[1732379235238,1.617,3411.5,3409.1,0.02932801]
[1732379235549,1.9657664,3411.5,3409.2,0.1568828]
[1732379235730,0.3487664,3411.4,3409.2,0.1568828]
[1732379236431,0.50263027,3412.3,3409.2,0.1568828]
[1732379236432,1.617,3412.2,3409.4,1.5395]
[1732379236742,1.617,3412.2,3408.4,3.21717226]
[1732379236743,1.617,3412.2,3409.6,1.5395]
[1732379236948,0.46609974,3412.1,3409.7,0.1568817]
[1732379237111,0.81623352,3412.1,3409.7,0.1568817]
[1732379237312,1.617,3412.2,3409.8,0.02932399]
[1732379237512,0.62779974,3412.1,3409.8,0.20189456]
[1732379237703,0.62779974,3412.1,3409.8,0.17257057]
[1732379238101,0.62779974,3412.1,3409.7,0.02]
[1732379238102,0.4884743,3412.0,3409.7,0.02]
[1732379238302,1.617,3411.8,3409.7,0.02]
[1732379238495,0.55,3411.6,3409.7,0.02]
[1732379238711,0.78014651,3411.5,3409.7,0.02]
[1732379239047,9.32025382,3411.5,3409.7,0.02]
[1732379239246,0.43025382,3411.5,3409.7,0.02]
[1732379240247,8.89,3412.3,3409.8,0.02932169]
[1732379240432,0.45120751,3412.7,3410.0,0.55]
[1732379240602,0.45120751,3412.7,3409.8,0.18820386]
[1732379240603,1.617,3413.1,3410.1,1.56881044]
[1732379241695,0.55,3412.9,3410.1,1.56881044]
[1732379241899,3.55,3412.7,3410.1,1.5395]
[1732379242127,0.55,3412.5,3410.1,1.5395]
[1732379242400,3.65,3412.3,3410.1,1.5395]
[1732379242726,3.65,3412.1,3409.7,0.02]
[1732379242932,3.55,3411.9,3409.7,0.02]
[1732379243251,0.45120751,3411.8,3409.7,0.02]
[1732379243459,1.617,3412.0,3409.7,0.20527178]
[1732379243820,1.617,3412.0,3409.8,1.5395]
[1732379244146,0.45120751,3412.4,3409.7,0.02]
[1732379244147,1.617,3412.9,3410.0,1.5395]
[1732379244312,1.0507,3412.8,3410.2,1.5395]
[1732379244497,3.96264775,3413.5,3410.3,1.56881233]
[1732379244697,1.66016795,3413.5,3411.1,0.2932]
[1732379244941,0.04316795,3413.5,3411.6,1.8327]
[1732379245144,0.04316795,3413.5,3411.9,0.2932]
[1732379245325,0.04316795,3413.5,3412.2,0.2932]
[1732379245531,0.04316795,3413.5,3412.3,0.02929778]
[1732379246043,0.45120751,3414.8,3412.4,1.8327]
[1732379246350,2.34564775,3415.2,3412.9,0.2932]
[1732379246530,1.5033,3415.5,3413.0,1.6770898]
[1732379246847,1.5033,3415.5,3413.1,0.2932]
[1732379247004,1.5033,3415.5,3413.2,0.02928981]
[1732379247200,2.49775845,3415.7,3413.2,0.02928981]
[1732379247201,0.1521107,3415.7,3413.5,0.2932]
[1732379247401,0.1521107,3415.7,3413.7,1.6478]
[1732379247633,0.1521107,3415.7,3413.8,0.02928571]
[1732379247949,0.1521107,3415.7,3414.0,0.2932]
[1732379248257,0.1521107,3415.7,3414.2,0.2932]
[1732379248549,0.1521107,3415.7,3414.3,0.02927978]
[1732379249030,0.1521107,3415.7,3414.1,1.6478]
[1732379249417,0.65295903,3415.6,3411.6,1.6478]
[1732379249728,0.65295903,3415.6,3410.9,0.1]
[1732379249729,0.55,3415.5,3411.8,1.6478]
[1732379249935,1.51950697,3415.5,3411.9,1.67709323]
[1732379250100,1.51950697,3415.5,3412.1,1.6478]
[1732379250101,0.55,3415.3,3412.1,1.6478]
[1732379250298,1.5033,3415.2,3412.3,1.6478]
[1732379250537,3.3130945,3415.4,3412.5,1.6478]
[1732379250743,3.95921107,3415.4,3412.6,1.67708984]
[1732379250949,0.1521107,3415.7,3412.8,1.6478]
[1732379250950,2.50599413,3415.7,3412.8,1.6478]
[1732379251129,0.1521107,3415.7,3413.0,1.6478]
[1732379251333,0.1521107,3415.7,3413.1,1.67708563]
[1732379251506,1.5033,3415.6,3413.1,1.6478]
[1732379251703,1.5033,3415.6,3413.2,0.02929371]
[1732379251704,1.28992941,3415.5,3413.2,0.02929371]
[1732379252231,6.6435613,3415.5,3413.2,0.02928817]
[1732379252405,4.28992941,3415.5,3413.3,0.02928835]
[1732379252605,0.55,3415.2,3413.1,1.6478]
[1732379252807,0.55,3415.3,3413.1,1.6478]
[1732379253118,1.5033,3414.6,3410.7,1.6478]
[1732379253318,1.5033,3414.6,3410.8,1.84481003]
[1732379253319,2.35363189,3414.4,3410.8,1.84481003]
[1732379253517,2.35363189,3413.8,3410.8,1.67710063]
[1732379253732,0.55,3413.5,3410.9,0.16771006]